Workbook

Sheet rb (hidden)
D2: UWV Afspiegelingstool 2017-01v2 | G2: Rangordelijst | K2: 2017-06-08T15:54:03
D4: Organisatie/Bedrijf: | E4: Test Meriant hiccups en gelijke dids | I4: Uitwisselbare functie: | J4: huishoudelijk medewerker
E6: Datum indiening ontslagaanvraag: | F6: 2015-02-01 | J6: Noodzakelijke krimp binnen alle 88 medewerkers: | K6: 88
E8: Peildatum: | F8: 2015-02-01 | J8: Rekenkrimp over alle 86 medewerkers niet uit dienst op de peildatum: | K8: 86
F10: LEEFTIJDSGROEPEN | O10: 0 | P10: 0
F11: 15 t/m 24 | G11: 25 t/m 34 | H11: 35 t/m 44 | I11: 45 t/m 54 | J11: 55 en ouder | K11: Totaal | O11: 0 | P11: 0
D12: Medewerkers in dienst: | F12: 6 | G12: 11 | H12: 23 | I12: 23 | J12: 23 | K12: =SUM(F12:J12) -> 86 | L12: 1 | O12: 0 | P12: 0
E13: Afspiegelingsberekening: | F13: =(F12/$K12)*Krimp -> 6 | G13: =(G12/$K12)*Krimp -> 11 | H13: =(H12/$K12)*Krimp -> 23 | I13: =(I12/$K12)*Krimp -> 23 | J13: =(J12/$K12)*Krimp -> 23 | K13: =SUM(F13:J13) -> 86 | L13: 2
E14: Krimp obv voor de komma: | F14: =TRUNC(F13) -> 6 | G14: =TRUNC(G13) -> 11 | H14: =TRUNC(H13) -> 23 | I14: =TRUNC(I13) -> 23 | J14: =TRUNC(J13) -> 23 | K14: =SUM(F14:J14) -> 86 | L14: 3
E15: Formule na de komma: | F15: =TRUNC(MOD(F13,1)*100000)/100000 -> 0 | G15: =TRUNC(MOD(G13,1)*100000)/100000 -> 0 | H15: =TRUNC(MOD(H13,1)*100000)/100000 -> 0.99999 | I15: 0.99999 | J15: 0.99999 | K15: =SUM(F15:J15) -> 2.99997 | L15: 4
E16: Volgnr leeftijdsgroepen: | F16: 1 | G16: 2 | H16: 3 | I16: 4 | J16: 5 | L16: 5
E17: Waarden na de komma: | F17: 0 | G17: 0 | H17: 0.99999 | I17: 0.99999 | J17: 0.99999 | L17: 6
E18: Datum in dienst: | F18: 00:00:00 | G18: 00:00:00 | H18: 2013-03-01 | I18: 2013-03-01 | L18: 7
E19: Volgnr 1e medeweker: | F19: 1 | G19: 7 | H19: 18 | I19: 41 | J19: 64 | L19: 8
E20: Krimp obv na de komma: | F20: 0 | G20: 0 | H20: 0 | I20: 0 | J20: 0 | K20: =SUM(F20:J20) -> 0 | L20: 9
E21: Totale krimp: | F21: =F14+F20 -> 6 | G21: =G14+G20 -> 11 | H21: =H14+H20 -> 23 | I21: =I14+I20 -> 23 | J21: =J14+J20 -> 23 | K21: =SUM(F21:J21) -> 86 | L21: 10
D22: Krimp rangorde: | F22: 0 | G22: 0 | H22: 0 | I22: 0 | J22: 0 | K22: =SUM(F22:J22) -> 0 | L22: 11
D23: Krimp afspiegeling: | F23: 0 | G23: 0 | H23: 0 | I23: 0 | J23: 0 | K23: 0 | L23: 12
F24: 3 | G24: 6 | H24: 20 | I24: 23 | J24: 36 | M24: Status op beslisdatum (1 mei 2015)
D25: Leeftijdsgroep | E25: Naam medewerker | G25: Functie | I25: Geboortedatum | J25: Datum in dienst | K25: Status op peildatum | O25: 15-24 | P25: 25-34 | Q25: 35-44 | R25: 45-54 | S25: 55+

Sheet ab (hidden)
D2: UWV Afspiegelingstool 2017-01v2 | G2: Resultaat Afspiegelingsberekening | K2: 2019-08-23T11:35:47
D4: Organisatie/Bedrijf: | E4: Test Meriant hiccups en gelijke dids | I4: Uitwisselbare functie: | J4: huishoudelijk medewerker
E6: Datum indiening ontslagaanvraag: | F6: 2015-02-01 | J6: Noodzakelijke krimp binnen alle 88 medewerkers: | K6: 12
E8: Peildatum: | F8: 2015-02-01 | J8: Rekenkrimp over alle 86 medewerkers niet uit dienst op de peildatum: | K8: 10
F10: LEEFTIJDSGROEPEN
F11: 15 t/m 24 | G11: 25 t/m 34 | H11: 35 t/m 44 | I11: 45 t/m 54 | J11: 55 en ouder | K11: Totaal
D12: Medewerkers in dienst: | F12: 6 | G12: 11 | H12: 23 | I12: 23 | J12: 23 | K12: =SUM(F12:J12) -> 86
E13: Afspiegelingsberekening: | F13: =(F12/$K12)*Krimp -> 0.6976744186 | G13: =(G12/$K12)*Krimp -> 1.279069767 | H13: =(H12/$K12)*Krimp -> 2.674418605 | I13: =(I12/$K12)*Krimp -> 2.674418605 | J13: =(J12/$K12)*Krimp -> 2.674418605 | K13: =SUM(F13:J13) -> 10 | P13: <-> | R13: <->
E14: Krimp obv voor de komma: | F14: =TRUNC(F13) -> 0 | G14: =TRUNC(G13) -> 1 | H14: =TRUNC(H13) -> 2 | I14: =TRUNC(I13) -> 2 | J14: =TRUNC(J13) -> 2 | K14: =SUM(F14:J14) -> 7 | L14: 3
E15: Formule na de komma: | F15: =TRUNC(MOD(F13,1)*100000)/100000 -> 0.69767 | G15: =TRUNC(MOD(G13,1)*100000)/100000 -> 0.27906 | H15: =TRUNC(MOD(H13,1)*100000)/100000 -> 0.67441 | I15: 0.67441 | J15: 0.67441 | K15: =SUM(F15:J15) -> 2.99996 | L15: 4
E16: Volgnr leeftijdsgroepen: | F16: 1 | G16: 2 | H16: 3 | I16: 4 | J16: 5 | L16: 5
E17: Waarden na de komma: | J17: 0 | L17: 6
E18: Datum in dienst: | F18: 00:00:00 | G18: 00:00:00 | H18: 00:00:00 | I18: 00:00:00 | J18: 00:00:00 | L18: 7
E19: Volgnr 1e medeweker: | F19: 0 | G19: 0 | H19: 0 | I19: 0 | J19: 0 | L19: 8
E20: Krimp obv na de komma: | F20: 5 | G20: 5 | H20: 5 | I20: 5 | J20: 5 | K20: =SUM(F20:J20) -> 25 | L20: 9
E21: Aangepaste afspiegeling: | F21: 1 | G21: 0 | H21: -1 | I21: -1 | J21: 1 | K21: =SUM(F21:J21) -> 0 | L21: 10 | P21: rangnr | R21: lftgroep
D22: Krimp volgens afspiegeling: | F22: 1 | G22: 1 | H22: 3 | I22: 3 | J22: 2 | K22: =SUM(F22:J22) -> 10 | L22: 11 | O22: 1e hiccup
D23: Krimp volgens rangorde: | F23: 2 | G23: 1 | H23: 3 | I23: 2 | J23: 2 | K23: 10 | L23: 12 | O23: 2e hiccup
F24: 1 | G24: =F24+F12 -> 7 | H24: =G24+G12 -> 18 | I24: 41 | J24: 64 | K24: 131 | M24: Status op beslisdatum (1 mei 2015)
D25: Leeftijdsgroep | E25: Naam medewerker | G25: Functie | I25: Geboortedatum | J25: Datum in dienst | K25: Status op peildatum | O25: 15-24 | P25: 25-34 | Q25: 35-44 | R25: 45-54 | S25: 55+

Sheet mb (hidden)
I1: =IF(E1>0,YEAR(peildatum)-YEAR(E1)+IF(DATE(YEAR(peildatum),MONTH(E1),DAY(E1))-peildatum>0,-1,0),0) -> 0 | J1: =IF(E1>0,IF(O1="Uit dienst",0,IF(I1<25,1,IF(I1<35,2,IF(I1<45,3,IF(I1<55,4,5))))),"") ->  | K1: =IF(B1&C1&D1&E1="",0,IF(B1="",1,IF(OR(ISERROR(I1),E1="",I1<15),4,IF(AND(E1<>"",E1>TODAY()),4,IF(YEAR(F1)-YEAR(E1)<15,5,IF(F1>=peildatum,5,IF(AND(G1<>"",G1-F1<0),6,IF(C1="",2,0)))))))) -> 0 | L1: =IF(G1="",0,IF(G1<=peildatum,"Uit dienst",IF(G1-IOdatum<26*7,"Uit dienst < 26 wkn",""))) -> 00:00:00 | M1: =IF(I1>=55,DATE(YEAR(E1)+65,MONTH(E1)+INDEX(AOWtab,MATCH(E1,INDEX(AOWtab,,1),1),2),DAY(E1)),0) -> 00:00:00 | N1: =IF(M1=0,"",IF(M1<=peildatum,"AOW gerechtigd",IF(M1-IOdatum<26*7,"AOW gerechtigd <26 wkn",""))) ->  | O1: =IF(LEFT(L1,3)="Uit",L1,IF(N1="AOW gerechtigd",N1,IF(LEFT(H1,12)="oproepkracht","Oproepkracht",N1))) ->  | P1: =K1 -> 0 | Q1: =IF(AND(M1>0,M1<=IOdatplusacht),"Groep 2: AOW gerechtigd",IF(AND(LEFT(H1,12)<>"oproepkracht",M1>0,M1>IOdatplusacht,(M1-IOdatplusacht)<26*7),"AOW gerechtigd < 26 wkn",IF(AND(G1>0,G1<IOdatplusacht),"Uit dienst",IF(AND(LEFT(H1,12)<>"oproepkracht",G1>0,G1>IOdatplusacht,(G1-IOdatplusacht)<26*7),"Groep 4: Uit dienst< 26 wkn","")))) -> 
B3: UWV Afspiegelingstool 2017-01v2 | E3: OVERZICHT MEDEWERKERS | M3: Peildatum: | Q3: =IF(Bdatum>0,Bdatum,DATE(YEAR(IOdatum),MONTH(IOdatum)+8,DAY(IOdatum))) -> 1900-08-31
M4: Datum indiening ontslagaanvraag:
B5: Naam bedrijf / organisatie: | G5: Uitwisselbare functie: | M5: Beslisdatum:
B7: Naam | C7: Uitwisselbare functie | D7: Functie | E7: Geboorte-datum | F7: Datum in dienst | G7: Datum uit dienst | H7: Opmerking | I7: Leef-tijd | J7: Lgrp | K7: =SUM(INDEX(Tabmed,,10)) -> 0 | L7: Status uit dienst | M7: Ingang AOW | N7: Status AOW | O7: Status op peildatum | Q7: Status 8 mnd na indiening cq. Status op beslisdatum
I8: =IF(E8>0,YEAR(peildatum)-YEAR(E8)+IF(DATE(YEAR(peildatum),MONTH(E8),DAY(E8))-peildatum>0,-1,0),0) -> 0 | J8: =IF(E8>0,IF(O8="Uit dienst",0,IF(I8<25,1,IF(I8<35,2,IF(I8<45,3,IF(I8<55,4,5))))),"") ->  | K8: =IF(B8&C8&D8&E8="",0,IF(B8="",1,IF(OR(ISERROR(I8),E8="",I8<15),4,IF(AND(E8<>"",E8>TODAY()),4,IF(YEAR(F8)-YEAR(E8)<15,5,IF(F8>=peildatum,5,IF(AND(G8<>"",G8-F8<0),6,IF(C8="",2,0)))))))) -> 0 | L8: =IF(G8="",0,IF(G8<=peildatum,"Uit dienst",IF(G8-IOdatum<26*7,"Uit dienst < 26 wkn",""))) -> 00:00:00 | M8: =IF(I8>=55,DATE(YEAR(E8)+65,MONTH(E8)+INDEX(AOWtab,MATCH(E8,INDEX(AOWtab,,1),1),2),DAY(E8)),0) -> 00:00:00 | N8: =IF(M8=0,"",IF(M8<=peildatum,"AOW gerechtigd",IF(M8-IOdatum<26*7,"AOW gerechtigd <26 wkn",""))) ->  | O8: =IF(LEFT(L8,3)="Uit",L8,IF(N8="AOW gerechtigd",N8,IF(LEFT(H8,12)="oproepkracht","Oproepkracht",N8))) ->  | P8: =K8 -> 0 | Q8: =IF(AND(M8>0,M8<=IOdatplusacht),"Groep 2: AOW gerechtigd",IF(AND(LEFT(H8,12)<>"oproepkracht",M8>0,M8>IOdatplusacht,(M8-IOdatplusacht)<26*7),"AOW gerechtigd < 26 wkn",IF(AND(G8>0,G8<IOdatplusacht),"Uit dienst",IF(AND(LEFT(H8,12)<>"oproepkracht",G8>0,G8>IOdatplusacht,(G8-IOdatplusacht)<26*7),"Groep 4: Uit dienst< 26 wkn","")))) -> 

Sheet bs
D12: UWV Afspiegelingstool
E15: Indien het programma niet start, wijzig dan de onderstaande instelling in Excel:
E17: Bestand -> Opties -> Vertrouwenscentrum -> Instellingen voor het Vertrouwenscentrum -> Macro-
E19: instellingen -> Alle Macro's inschakelen -> OK -> Excel afsluiten en het programma opnieuw starten.

Sheet par (hidden)
B2: Tabel ingangsdatum AOW geboortedatum vanaf | C2: extra maanden | E2: Overige parameters
B3: 0 | C3: 0 | E3: Menupostie boven | F3: 42
B4: 1948-01-01 | C4: 1 | E4: Menupositie links | F4: 680.25
B5: 1948-12-01 | C5: 2 | E5: Hdir | F5: G:\WERK AJD Centraal\A&O Productie\IT\Tools\Afspiegeltool Officieel
B6: 1949-11-01 | C6: 3 | E6: Excelversie | F6: 16
B7: 1950-10-01 | C7: 6 | E7: Extension | F7: .xls
B8: 1951-07-01 | C8: 9 | E8: ProgrammaNaam | F8: UWV Afspiegelingstool 2017-01v2.xlsm
B9: 1952-04-01 | C9: 12 | E9: KZOpostie boven | F9: 42
B10: 1953-01-01 | C10: 16 | E10: KZOpositie links | F10: 805.25
B11: 1955-09-01 | C11: 19 | E11: Trace boven | F11: 343.5
B12: 1956-06-01 | C12: 22 | E12: Trace links | F12: 789.75
B13: 1957-03-01 | C13: 24 | E13: Ingelogd als beheerder | F13: TRUE
